Body Name,ONS SNAC ID,Pay Date,Transaction No,Amount �,Supplier Name,Company Registration No,Department,Account Name,CIPFA Service Reporting
Swale Borough Council,29UM,01/08/2018,1161210,6272.04,ACORN MAINTENANCE SERVICES,3546898                  ,HOUSING SERVICES,Housing Renovation Grants,Not used in this Structure
Swale Borough Council,29UM,01/08/2018,1161094,8862.00,AECOM INFRASTRUCTURE & ENV UK LTD,880328                   ,PLANNING SERVICES,Fees and Services,Planning and Development Services
Swale Borough Council,29UM,01/08/2018,1161132,21535.20,AMETHYST HORTICULTURE LTD,4464660                  ,LEISURE & OPEN SPACES,Nursery Stock,Environmental and Regulatory Services
Swale Borough Council,29UM,01/08/2018,1161133,3782.45,AMETHYST HORTICULTURE LTD,4464660                  ,LEISURE & OPEN SPACES,Nursery Stock,Cultural and Related Services
Swale Borough Council,29UM,01/08/2018,1161134,376.50,AMETHYST HORTICULTURE LTD,4464660                  ,LEISURE & OPEN SPACES,Nursery Stock,Cultural and Related Services
Swale Borough Council,29UM,01/08/2018,1161106,500.00,ARC CREATIVE DESIGN LTD,6203311                  ,LEISURE & OPEN SPACES,Maintenance - Grounds,Cultural and Related Services
Swale Borough Council,29UM,01/08/2018,1161129,100.00,B & K MASTERS & SON,                         ,LEISURE & OPEN SPACES,Maintenance - Grounds,Environmental and Regulatory Services
Swale Borough Council,29UM,01/08/2018,1161129,835.00,B & K MASTERS & SON,                         ,LEISURE & OPEN SPACES,Maintenance - Grounds,Environmental and Regulatory Services
Swale Borough Council,29UM,01/08/2018,1160570,102846.35,BLENWOOD LTD,4383277                  ,LEISURE & OPEN SPACES,Grounds Maint Suspense,Cultural and Related Services
Swale Borough Council,29UM,01/08/2018,1161081,896.30,BLENWOOD LTD,4383277                  ,CAR PARKS,Maintenance - Grounds,Highway and Transport Services
Swale Borough Council,29UM,01/08/2018,1161151,24999.00,BORDEN SPORT LIMITED,                         ,FINANCIAL SERVICES,Swale Local Loan Fund Expenditure,Ledger/Suspense Codes
Swale Borough Council,29UM,01/08/2018,1160819,359.00,CONTRACT SECURITY SERVICES,2461362                  ,EXCHEQUER,Cash Security,Internal Trading Cost Centres
Swale Borough Council,29UM,01/08/2018,1160819,3319.68,CONTRACT SECURITY SERVICES,2461362                  ,CAR PARKS,Cash Security,Highway and Transport Services
Swale Borough Council,29UM,01/08/2018,1161207,7654.26,DAYTRAD LIMITED,7654373                  ,HOUSING SERVICES,Housing Renovation Grants,Not used in this Structure
Swale Borough Council,29UM,01/08/2018,1160985,627.23,DIPERK POWER SOLUTIONS,367090                   ,PROPERTY SERVICES,Non-Planned Building Maintenance,Corporate & Democratic Core
Swale Borough Council,29UM,01/08/2018,1161209,12350.00,DOLPHIN STAIRLIFTS (KENT),04181846                 ,HOUSING SERVICES,Housing Renovation Grants,Not used in this Structure
Swale Borough Council,29UM,01/08/2018,1161149,270.00,REDACTED PERSONAL INFORMATION,                         ,ENVIRONMENTAL RESPONSE TEAM,Fees - Veterinary,Environmental and Regulatory Services
Swale Borough Council,29UM,01/08/2018,1161150,320.00,REDACTED PERSONAL INFORMATION,                         ,ENVIRONMENTAL RESPONSE TEAM,Fees - Veterinary,Environmental and Regulatory Services
Swale Borough Council,29UM,01/08/2018,1161196,500.00,HOLIDAY INN SITTINGBOURNE,                         ,ECONOMIC DEVELOPMENT,Hire Of Premises,Planning and Development Services
Swale Borough Council,29UM,01/08/2018,1161196,176.25,HOLIDAY INN SITTINGBOURNE,                         ,ECONOMIC DEVELOPMENT,Catering Provisions,Planning and Development Services
Swale Borough Council,29UM,01/08/2018,1161059,300.00,HUBBARD & HOUGHTON CONSTRUCTION LTD,                         ,HOUSING SERVICES,Staying Put small repairs (contractors),Housing
Swale Borough Council,29UM,01/08/2018,1161097,350.00,HUBBARD & HOUGHTON CONSTRUCTION LTD,                         ,HOUSING SERVICES,Staying Put small repairs (contractors),Housing
Swale Borough Council,29UM,01/08/2018,1161204,252.00,HUBBARD & HOUGHTON CONSTRUCTION LTD,                         ,HOUSING SERVICES,Housing Renovation Grants,Not used in this Structure
Swale Borough Council,29UM,01/08/2018,1161205,5825.00,HUBBARD & HOUGHTON CONSTRUCTION LTD,                         ,HOUSING SERVICES,Housing Renovation Grants,Not used in this Structure
Swale Borough Council,29UM,01/08/2018,1161206,250.00,HUBBARD & HOUGHTON LTD,                         ,HOUSING SERVICES,Housing Renovation Grants,Not used in this Structure
Swale Borough Council,29UM,01/08/2018,1160976,327.50,HYDRO DESCALING LTD,1304128                  ,CAR PARKS,Maintenance - Grounds,Highway and Transport Services
Swale Borough Council,29UM,01/08/2018,1161028,3777.42,IDOX SOFTWARE LTD,06706798                 ,DEMOCRATIC & ELECTORAL SERVICES,Fees and Services,Central Services to the Public
Swale Borough Council,29UM,01/08/2018,1160912,1500.00,KAREBEAR KENNELS LTD,                         ,ENVIRONMENTAL RESPONSE TEAM,Kennelling Of Dogs,Environmental and Regulatory Services
Swale Borough Council,29UM,01/08/2018,1160912,-185.00,KAREBEAR KENNELS LTD,                         ,ENVIRONMENTAL RESPONSE TEAM,Income collected by Dog Kennels,Environmental and Regulatory Services
Swale Borough Council,29UM,01/08/2018,1161027,1500.00,KENT COUNTY COUNCIL,                         ,COMMUNITY SAFETY,Fees and Services,Environmental and Regulatory Services
Swale Borough Council,29UM,01/08/2018,1160883,150.00,LEMAR LIMITED,04350292                 ,CAR PARKS,Maintenance - Grounds,Highway and Transport Services
Swale Borough Council,29UM,01/08/2018,1160883,180.00,LEMAR LIMITED,04350292                 ,CAR PARKS,Maintenance - Grounds,Highway and Transport Services
Swale Borough Council,29UM,01/08/2018,1160567,21339.00,LINK PROPERTY GROUP,                         ,HOUSING SERVICES,NL (Nightly Lets) - Homelessness Landlord Payments,Housing
Swale Borough Council,29UM,01/08/2018,1160902,73777.54,MAIDSTONE BOROUGH COUNCIL,                         ,CONTRACT & PROCUREMENT,Private Contractors,Environmental and Regulatory Services
Swale Borough Council,29UM,01/08/2018,1160902,200997.28,MAIDSTONE BOROUGH COUNCIL,                         ,CONTRACT & PROCUREMENT,Private Contractors,Environmental and Regulatory Services
Swale Borough Council,29UM,01/08/2018,1160903,73777.54,MAIDSTONE BOROUGH COUNCIL,                         ,CONTRACT & PROCUREMENT,Private Contractors,Environmental and Regulatory Services
Swale Borough Council,29UM,01/08/2018,1160903,200997.28,MAIDSTONE BOROUGH COUNCIL,                         ,CONTRACT & PROCUREMENT,Private Contractors,Environmental and Regulatory Services
Swale Borough Council,29UM,01/08/2018,1160901,15073.71,MATRIX SCM LTD,2227962                  ,HUMAN RESOURCES,Agency/Contract Staff,Internal Trading Cost Centres
Swale Borough Council,29UM,01/08/2018,1161195,1000.00,MEDWAY SWALE ESTUARY PARTNERSHIP,                         ,TOURISM & SPORTS DEVELOPMENT,Grants & Subscriptions,Cultural and Related Services
Swale Borough Council,29UM,01/08/2018,1161105,2900.00,MIDLANDS SIGNS LEICESTER LTD,1778323                  ,SERVICE DELIVERY,Private Contractors - CIS,Highway and Transport Services
Swale Borough Council,29UM,01/08/2018,1161105,1659.11,MIDLANDS SIGNS LEICESTER LTD,1778323                  ,SERVICE DELIVERY,Private Contractors - CIS,Highway and Transport Services
Swale Borough Council,29UM,01/08/2018,1160574,17994.20,MONITOR CLEANING SERVICES LTD,02526388                 ,CONTRACT & PROCUREMENT,Private Contractors,Environmental and Regulatory Services
Swale Borough Council,29UM,01/08/2018,1161160,400.00,MR J W GATES,                         ,LEISURE & OPEN SPACES,Grounds Contract Variations,Cultural and Related Services
Swale Borough Council,29UM,01/08/2018,1161145,581.00,REDACTED PERSONAL INFORMATION,                         ,HOUSING SERVICES,B & B - Homelessness Landlord Payments,Housing
Swale Borough Council,29UM,01/08/2018,1161099,250.00,MS SWALE,                         ,ECONOMY & COMMUNITIES,Grants & Subscriptions,Central Services to the Public
Swale Borough Council,29UM,01/08/2018,1160245,7.60,O2 (UK) LTD,1743099                  ,PLANNING SERVICES,Cellphone,Planning and Development Services
Swale Borough Council,29UM,01/08/2018,1160245,8.59,O2 (UK) LTD,1743099                  ,PLANNING SERVICES,Cellphone,Planning and Development Services
Swale Borough Council,29UM,01/08/2018,1160245,7.10,O2 (UK) LTD,1743099                  ,ECONOMIC DEVELOPMENT,Cellphone,Planning and Development Services
Swale Borough Council,29UM,01/08/2018,1160245,17.10,O2 (UK) LTD,1743099                  ,EMERGENCY PLANNING,Cellphone,Central Services to the Public
Swale Borough Council,29UM,01/08/2018,1160245,14.90,O2 (UK) LTD,1743099                  ,SERVICE DELIVERY,Cellphone,Cultural and Related Services
Swale Borough Council,29UM,01/08/2018,1160245,27.01,O2 (UK) LTD,1743099                  ,HOUSING SERVICES,Cellphone,Housing
Swale Borough Council,29UM,01/08/2018,1160245,13.02,O2 (UK) LTD,1743099                  ,REVENUE SERVICES,Cellphone,Housing
Swale Borough Council,29UM,01/08/2018,1160245,14.20,O2 (UK) LTD,1743099                  ,LICENCING,Cellphone,Internal Trading Cost Centres
Swale Borough Council,29UM,01/08/2018,1160245,205.92,O2 (UK) LTD,1743099                  ,PROPERTY SERVICES,Cellphone,Internal Trading Cost Centres
Swale Borough Council,29UM,01/08/2018,1160245,32.56,O2 (UK) LTD,1743099                  ,PROPERTY SERVICES,Cellphone,Internal Trading Cost Centres
Swale Borough Council,29UM,01/08/2018,1160245,7.60,O2 (UK) LTD,1743099                  ,ECONOMY & COMMUNITIES,Cellphone,Internal Trading Cost Centres
Swale Borough Council,29UM,01/08/2018,1160245,14.20,O2 (UK) LTD,1743099                  ,TOURISM & SPORTS DEVELOPMENT,Cellphone,Internal Trading Cost Centres
Swale Borough Council,29UM,01/08/2018,1160245,19.91,O2 (UK) LTD,1743099                  ,ECONOMIC DEVELOPMENT,Cellphone,Internal Trading Cost Centres
Swale Borough Council,29UM,01/08/2018,1160245,4.71,O2 (UK) LTD,1743099                  ,SERVICE DELIVERY,Cellphone,Internal Trading Cost Centres
Swale Borough Council,29UM,01/08/2018,1160245,60.00,O2 (UK) LTD,1743099                  ,CONTRACT & PROCUREMENT,Cellphone,Internal Trading Cost Centres
Swale Borough Council,29UM,01/08/2018,1160245,-35.90,O2 (UK) LTD,1743099                  ,MKS ENVIRONMENTAL SERVICES,Cellphone,Internal Trading Cost Centres
Swale Borough Council,29UM,01/08/2018,1160245,-8.87,O2 (UK) LTD,1743099                  ,MKS ENVIRONMENTAL SERVICES,Cellphone,Internal Trading Cost Centres
Swale Borough Council,29UM,01/08/2018,1160245,51.49,O2 (UK) LTD,1743099                  ,ENVIRONMENTAL RESPONSE TEAM,Cellphone,Internal Trading Cost Centres
Swale Borough Council,29UM,01/08/2018,1160245,11.35,O2 (UK) LTD,1743099                  ,PLANNING SERVICES,Cellphone,Internal Trading Cost Centres
Swale Borough Council,29UM,01/08/2018,1160245,40.33,O2 (UK) LTD,1743099                  ,LEISURE & OPEN SPACES,Cellphone,Internal Trading Cost Centres
Swale Borough Council,29UM,01/08/2018,1160245,13.51,O2 (UK) LTD,1743099                  ,CHIEF EXECUTIVE,Cellphone,Internal Trading Cost Centres
Swale Borough Council,29UM,01/08/2018,1160245,12.75,O2 (UK) LTD,1743099                  ,COMMISSIONING & CUSTOMER CONTACT,Cellphone,Internal Trading Cost Centres
Swale Borough Council,29UM,01/08/2018,1160245,8.43,O2 (UK) LTD,1743099                  ,COMMISSIONING & CUSTOMER CONTACT,Cellphone,Internal Trading Cost Centres
Swale Borough Council,29UM,01/08/2018,1160245,7.60,O2 (UK) LTD,1743099                  ,POLICY,Cellphone,Internal Trading Cost Centres
Swale Borough Council,29UM,01/08/2018,1160245,7.63,O2 (UK) LTD,1743099                  ,COMMUNICATIONS,Cellphone,Internal Trading Cost Centres
Swale Borough Council,29UM,01/08/2018,1160245,28.47,O2 (UK) LTD,1743099                  ,ENVIRONMENTAL RESPONSE TEAM,Cellphone,Internal Trading Cost Centres
Swale Borough Council,29UM,01/08/2018,1160245,31.03,O2 (UK) LTD,1743099                  ,MKS LEGAL SERVICES,Cellphone,Internal Trading Cost Centres
Swale Borough Council,29UM,01/08/2018,1160245,7.10,O2 (UK) LTD,1743099                  ,FINANCIAL SERVICES,Cellphone,Internal Trading Cost Centres
Swale Borough Council,29UM,01/08/2018,1160245,-3.48,O2 (UK) LTD,1743099                  ,TOURISM & SPORTS DEVELOPMENT,Cellphone,Internal Trading Cost Centres
Swale Borough Council,29UM,01/08/2018,1160245,3.23,O2 (UK) LTD,1743099                  ,PLANNING SERVICES,Cellphone,Planning and Development Services
Swale Borough Council,29UM,01/08/2018,1160245,46.74,O2 (UK) LTD,1743099                  ,HOUSING SERVICES,Cellphone,Housing
Swale Borough Council,29UM,01/08/2018,1160245,20.80,O2 (UK) LTD,1743099                  ,ENVIRONMENTAL RESPONSE TEAM,Cellphone,Environmental and Regulatory Services
Swale Borough Council,29UM,01/08/2018,1160245,7.75,O2 (UK) LTD,1743099                  ,TOURISM & SPORTS DEVELOPMENT,Cellphone,Cultural and Related Services
Swale Borough Council,29UM,01/08/2018,1160245,45.36,O2 (UK) LTD,1743099                  ,HOUSING SERVICES,Cellphone,Housing
Swale Borough Council,29UM,01/08/2018,1161156,290.33,PORTAKABIN LIMITED,685303                   ,LEISURE & OPEN SPACES,Maintenance - Grounds,Environmental and Regulatory Services
Swale Borough Council,29UM,01/08/2018,1161211,768.00,REDACTED PERSONAL INFORMATION,                         ,HOUSING SERVICES,Housing Renovation Grants,Not used in this Structure
Swale Borough Council,29UM,01/08/2018,1161212,2000.00,REDACTED PERSONAL INFORMATION,                         ,HOUSING SERVICES,Housing Renovation Grants,Not used in this Structure
Swale Borough Council,29UM,01/08/2018,1161213,1562.00,REDACTED PERSONAL INFORMATION,                         ,HOUSING SERVICES,Housing Renovation Grants,Not used in this Structure
Swale Borough Council,29UM,01/08/2018,1161203,9345.50,SAFE PROPERTY SPECIALIST'S LTD,                         ,HOUSING SERVICES,Housing Renovation Grants,Not used in this Structure
Swale Borough Council,29UM,01/08/2018,1160659,11660.43,SERCO LEISURE OPERATING LIMITED,04687478                 ,LEISURE & OPEN SPACES,Procurement Contracts Only,Cultural and Related Services
Swale Borough Council,29UM,01/08/2018,1160995,15000.00,SEVENOAKS DISTRICT COUNCIL,                         ,CONTRACT & PROCUREMENT,Fees and Services,Environmental and Regulatory Services
Swale Borough Council,29UM,01/08/2018,1161214,780.00,SOUTHGATE ROOFING,                         ,HOUSING SERVICES,Housing Renovation Grants,Not used in this Structure
Swale Borough Council,29UM,01/08/2018,1160657,12510.14,SWALE COMMUNITY LEISURE LIMITED,31132R                   ,LEISURE & OPEN SPACES,Procurement Contracts Only,Cultural and Related Services
Swale Borough Council,29UM,01/08/2018,1160658,7700.00,SWALE COMMUNITY LEISURE LIMITED,31132R                   ,LEISURE & OPEN SPACES,Procurement Contracts Only,Cultural and Related Services
Swale Borough Council,29UM,01/08/2018,1161127,488.40,TECO INTERIORS LTD,                         ,PROPERTY SERVICES,Buildings Maintenance,Corporate & Democratic Core
Swale Borough Council,29UM,01/08/2018,1160885,1425.00,THE OYSTER PARTNERSHIP,05020374                 ,PLANNING SERVICES,Agency/Contract Staff,Planning and Development Services
Swale Borough Council,29UM,01/08/2018,1161089,1425.00,THE OYSTER PARTNERSHIP,05020374                 ,PLANNING SERVICES,Agency/Contract Staff,Planning and Development Services
Swale Borough Council,29UM,01/08/2018,1160900,1512.00,TRAFALGAR TAVERN LTD,07999329                 ,HOUSING SERVICES,B & B - Homelessness Landlord Payments,Housing
Swale Borough Council,29UM,01/08/2018,1160997,1512.00,TRAFALGAR TAVERN LTD,07999329                 ,HOUSING SERVICES,B & B - Homelessness Landlord Payments,Housing
Swale Borough Council,29UM,01/08/2018,1161143,1392.00,TRAFALGAR TAVERN LTD,07999329                 ,HOUSING SERVICES,B & B - Homelessness Landlord Payments,Housing
Swale Borough Council,29UM,01/08/2018,1160966,90.58,VR SANI-CO LTD,3588359                  ,TOURISM & SPORTS DEVELOPMENT,Service Contracts,Cultural and Related Services
Swale Borough Council,29UM,01/08/2018,1160966,5.96,VR SANI-CO LTD,3588359                  ,COMMUNITY SAFETY,Service Contracts,Cultural and Related Services
Swale Borough Council,29UM,01/08/2018,1160966,35.76,VR SANI-CO LTD,3588359                  ,PROPERTY SERVICES,Service Contracts,Cultural and Related Services
Swale Borough Council,29UM,01/08/2018,1160966,304.64,VR SANI-CO LTD,3588359                  ,PROPERTY SERVICES,Service Contracts,Corporate & Democratic Core
Swale Borough Council,29UM,01/08/2018,1160986,90.58,VR SANI-CO LTD,3588359                  ,TOURISM & SPORTS DEVELOPMENT,Service Contracts,Cultural and Related Services
Swale Borough Council,29UM,01/08/2018,1160986,5.96,VR SANI-CO LTD,3588359                  ,COMMUNITY SAFETY,Service Contracts,Cultural and Related Services
Swale Borough Council,29UM,01/08/2018,1160986,35.76,VR SANI-CO LTD,3588359                  ,PROPERTY SERVICES,Service Contracts,Cultural and Related Services
Swale Borough Council,29UM,01/08/2018,1160986,304.64,VR SANI-CO LTD,3588359                  ,PROPERTY SERVICES,Service Contracts,Corporate & Democratic Core
Swale Borough Council,29UM,01/08/2018,1161039,550.00,WEALD WOODSCAPES LTD,8028446                  ,LEISURE & OPEN SPACES,Maintenance - Grounds,Cultural and Related Services
Swale Borough Council,29UM,01/08/2018,1161030,437.27,WHISTL UK LIMITED,04417047                 ,REVENUE SERVICES,Postage,Central Services to the Public
Swale Borough Council,29UM,01/08/2018,1161030,218.63,WHISTL UK LIMITED,04417047                 ,REVENUE SERVICES,Postage,Housing
Swale Borough Council,29UM,01/08/2018,1161030,8.17,WHISTL UK LIMITED,04417047                 ,CAR PARKS,Postage,Internal Trading Cost Centres
Swale Borough Council,29UM,01/08/2018,1161030,624.78,WHISTL UK LIMITED,04417047                 ,PROPERTY SERVICES,Postage,Holding Codes
Swale Borough Council,29UM,01/08/2018,1161030,336.79,WHISTL UK LIMITED,04417047                 ,DEMOCRATIC & ELECTORAL SERVICES,Postage,Central Services to the Public
Swale Borough Council,29UM,01/08/2018,1161049,260.00,WILLOW TREE HOME SOLUTIONS LTD,                         ,HOUSING SERVICES,Staying Put small repairs (contractors),Housing
Swale Borough Council,29UM,01/08/2018,1161111,468.00,WILLOW TREE HOME SOLUTIONS LTD,                         ,HOUSING SERVICES,Staying Put small repairs (contractors),Housing
Swale Borough Council,29UM,01/08/2018,1161112,335.00,WILLOW TREE HOME SOLUTIONS LTD,                         ,HOUSING SERVICES,Staying Put small repairs (contractors),Housing
Swale Borough Council,29UM,01/08/2018,1161113,444.00,WILLOW TREE HOME SOLUTIONS LTD,                         ,HOUSING SERVICES,Staying Put small repairs (contractors),Housing
Swale Borough Council,29UM,08/08/2018,1161326,505.00,A.C MACKLIN FENCING,10311550                 ,CAR PARKS,Maintenance - Grounds,Highway and Transport Services
Swale Borough Council,29UM,08/08/2018,1161326,450.00,A.C MACKLIN FENCING,10311550                 ,CAR PARKS,Maintenance - Grounds,Highway and Transport Services
Swale Borough Council,29UM,08/08/2018,1161323,577.50,ACORN MAINTENANCE SERVICES,3546898                  ,HOUSING SERVICES,Staying Put small repairs (contractors),Housing
Swale Borough Council,29UM,08/08/2018,1161346,3000.00,ACORN MAINTENANCE SERVICES,3546898                  ,HOUSING SERVICES,Payments in Year,Ledger/Suspense Codes
Swale Borough Council,29UM,08/08/2018,1161415,15966.09,ACORN MAINTENANCE SERVICES,3546898                  ,HOUSING SERVICES,Housing Renovation Grants,Not used in this Structure
Swale Borough Council,29UM,08/08/2018,1161246,195.67,ALLSTAR BUSINESS SOLUTIONS LTD - (DT),1073098                  ,SERVICE DELIVERY,Petrol/Derv & Oil,Cultural and Related Services
Swale Borough Council,29UM,08/08/2018,1161246,550.84,ALLSTAR BUSINESS SOLUTIONS LTD - (DT),1073098                  ,ENVIRONMENTAL RESPONSE TEAM,Fuel For Contract Vehicles,Internal Trading Cost Centres
Swale Borough Council,29UM,08/08/2018,1161246,74.20,ALLSTAR BUSINESS SOLUTIONS LTD - (DT),1073098                  ,LEISURE & OPEN SPACES,Fuel For Contract Vehicles,Cultural and Related Services
Swale Borough Council,29UM,08/08/2018,1161246,118.00,ALLSTAR BUSINESS SOLUTIONS LTD - (DT),1073098                  ,ENVIRONMENTAL RESPONSE TEAM,Fuel For Contract Vehicles,Environmental and Regulatory Services
Swale Borough Council,29UM,08/08/2018,1160644,24270.43,AMALGAMATED LIFTS LIMITED,2316623                  ,PROPERTY SERVICES,Capitalised Fees And Charges,Not used in this Structure
Swale Borough Council,29UM,08/08/2018,1161178,12588.63,APCOA PARKING (UK) LTD,2572947                  ,CAR PARKS,Private Contractors,Highway and Transport Services
Swale Borough Council,29UM,08/08/2018,1161178,18882.95,APCOA PARKING (UK) LTD,2572947                  ,CAR PARKS,Private Contractors,Highway and Transport Services
Swale Borough Council,29UM,08/08/2018,1161292,1000.00,APPLAUSE RURAL TOURING,                         ,TOURISM & SPORTS DEVELOPMENT,Grants & Subscriptions,Cultural and Related Services
Swale Borough Council,29UM,08/08/2018,1161299,1158.20,ASTRA SECURITY SYSTEMS LTD,01447970                 ,COMMUNITY SAFETY,Fees and Services,Environmental and Regulatory Services
Swale Borough Council,29UM,08/08/2018,1161179,3775.20,BLENWOOD LTD,4383277                  ,LEISURE & OPEN SPACES,Maintenance - Grounds Contract,Cultural and Related Services
Swale Borough Council,29UM,08/08/2018,1161180,3200.67,BLENWOOD LTD,4383277                  ,LEISURE & OPEN SPACES,Grounds Maint Suspense,Cultural and Related Services
Swale Borough Council,29UM,08/08/2018,1161181,102846.35,BLENWOOD LTD,4383277                  ,LEISURE & OPEN SPACES,Grounds Maint Suspense,Cultural and Related Services
Swale Borough Council,29UM,08/08/2018,1161396,361.04,BLENWOOD LTD,4383277                  ,PROPERTY SERVICES,Maintenance - Grounds,Trading Undertaking
Swale Borough Council,29UM,08/08/2018,1161188,1750.00,BLOOM PROCUREMENT SERVICES LTD,08045123                 ,ECONOMY & COMMUNITIES,Capitalised Fees And Charges,Not used in this Structure
Swale Borough Council,29UM,08/08/2018,1161188,1750.00,BLOOM PROCUREMENT SERVICES LTD,08045123                 ,ECONOMY & COMMUNITIES,Capitalised Fees And Charges,Not used in this Structure
Swale Borough Council,29UM,08/08/2018,1161283,5304.60,BLOOM PROCUREMENT SERVICES LTD,08045123                 ,PLANNING SERVICES,Fees and Services,Planning and Development Services
Swale Borough Council,29UM,08/08/2018,1161320,2676.60,BROADWAY ESTATES,                         ,REVENUE SERVICES,Fees and Services,Housing
Swale Borough Council,29UM,08/08/2018,1161198,282.16,C.E.F. (SOUTH EAST DIVISION),                         ,PROPERTY SERVICES,Buildings Maintenance,Corporate & Democratic Core
Swale Borough Council,29UM,08/08/2018,1161273,500.00,CALLCREDIT LIMITED,3961870                  ,REVENUE SERVICES,Fees and Services,Central Services to the Public
Swale Borough Council,29UM,08/08/2018,1161338,560.00,CANNON FIRE PROTECTION LTD,09304781                 ,PROPERTY SERVICES,Service Contracts,Corporate & Democratic Core
Swale Borough Council,29UM,08/08/2018,1161243,3333.33,CHALKWELL COACH HIRE LTD,2520842                  ,PLANNING SERVICES,Payments in Year,Ledger/Suspense Codes
Swale Borough Council,29UM,08/08/2018,1161284,33357.50,CITIZENS ADVICE BUREAU IN SWALE,5052691                  ,TOURISM & SPORTS DEVELOPMENT,Voluntary Organisations Grants,Central Services to the Public
Swale Borough Council,29UM,08/08/2018,1161249,3209.80,CLEAR CHANNEL UK LTD,                         ,ECONOMIC DEVELOPMENT,Private Contractors - CIS,Planning and Development Services
Swale Borough Council,29UM,08/08/2018,1160957,6500.00,CUSHMAN & WAKEFIELD DEBENHAM T L LTD,2757768                  ,PROPERTY SERVICES,Fees and Services,Trading Undertaking
Swale Borough Council,29UM,08/08/2018,1161279,616.00,DISCLOSURE & BARRING SERVICE (DT),                         ,LICENCING,Fees and Services,Environmental and Regulatory Services
Swale Borough Council,29UM,08/08/2018,1161191,4391.50,ENVITECH EUROPE LTD,SC367372                 ,MKS ENVIRONMENTAL SERVICES,Private Contractors,Environmental and Regulatory Services
Swale Borough Council,29UM,08/08/2018,1161303,483.00,GEN2 PROPERTY LIMITED,09834851                 ,PROPERTY SERVICES,Consultancy/Specialist Advice,Internal Trading Cost Centres
Swale Borough Council,29UM,08/08/2018,1161344,3696.50,HADDONSTONE LTD,2029655                  ,LEISURE & OPEN SPACES,Maintenance - Grounds,Environmental and Regulatory Services
Swale Borough Council,29UM,08/08/2018,1161345,1163.33,HANSON GARAGES LTD,02927821                 ,LEISURE & OPEN SPACES,Maintenance - Grounds,Environmental and Regulatory Services
Swale Borough Council,29UM,08/08/2018,1161419,257.00,HIGHER ELEVATION LTD,                         ,HOUSING SERVICES,Housing Renovation Grants,Not used in this Structure
Swale Borough Council,29UM,08/08/2018,1161356,330.00,HMCTS (DT),                         ,REVENUE SERVICES,Court Costs,Central Services to the Public
Swale Borough Council,29UM,08/08/2018,1161123,89857.10,KENT COUNTY COUNCIL,                         ,PLANNING SERVICES,Payments in Year,Ledger/Suspense Codes
Swale Borough Council,29UM,08/08/2018,1161123,89812.95,KENT COUNTY COUNCIL,                         ,PLANNING SERVICES,Payments in Year,Ledger/Suspense Codes
Swale Borough Council,29UM,08/08/2018,1161125,34377.88,KENT COUNTY COUNCIL,                         ,PLANNING SERVICES,Payments in Year,Ledger/Suspense Codes
Swale Borough Council,29UM,08/08/2018,1160805,1387.36,LLOYDS BANK - (DT),                         ,FINANCIAL SERVICES,Bank Charges,Corporate & Democratic Core
Swale Borough Council,29UM,08/08/2018,1161103,250.00,LOCATA (HOUSING SERVICES) LTD,04419315                 ,HOUSING SERVICES,Computer Equipment & Materials,Housing
Swale Borough Council,29UM,08/08/2018,1161139,1575.00,LUSHLAND,4289261                  ,PLANNING SERVICES,Fees and Services,Planning and Development Services
Swale Borough Council,29UM,08/08/2018,1161257,375.12,LYRECO UK LTD,                         ,PROPERTY SERVICES,Equipment Purchase,Internal Trading Cost Centres
Swale Borough Council,29UM,08/08/2018,1161258,294.00,LYRECO UK LTD,                         ,PROPERTY SERVICES,Paper,Internal Trading Cost Centres
Swale Borough Council,29UM,08/08/2018,1160631,16300.00,MAIDSTONE BOROUGH COUNCIL,                         ,MKS ICT,MKS Charges for ICT,Internal Trading Cost Centres
Swale Borough Council,29UM,08/08/2018,1160632,47558.84,MAIDSTONE BOROUGH COUNCIL,                         ,AUDIT,MKS Charges for Audit Services,Internal Trading Cost Centres
Swale Borough Council,29UM,08/08/2018,1160633,51810.00,MAIDSTONE BOROUGH COUNCIL,                         ,MKS ICT,MKS Charges for ICT,Internal Trading Cost Centres
Swale Borough Council,29UM,08/08/2018,1160988,52417.50,MAIDSTONE BOROUGH COUNCIL,                         ,PLANNING SERVICES,MKS Charges for Planning,Internal Trading Cost Centres
Swale Borough Council,29UM,08/08/2018,1160988,13852.50,MAIDSTONE BOROUGH COUNCIL,                         ,PLANNING SERVICES,MKS Charges for Land Charges,Central Services to the Public
Swale Borough Council,29UM,08/08/2018,1161202,635.00,METRIC GROUP LTD,2560839                  ,CAR PARKS,Fees - Licence,Highway and Transport Services
Swale Borough Council,29UM,08/08/2018,1161277,2475.33,METRIC GROUP LTD,2560839                  ,CAR PARKS,Equipment Maintenance,Highway and Transport Services
Swale Borough Council,29UM,08/08/2018,1161152,1034.00,MID KENT MEMORIALS,                         ,LEISURE & OPEN SPACES,Maintenance - Grounds,Environmental and Regulatory Services
Swale Borough Council,29UM,08/08/2018,1161242,17994.20,MONITOR CLEANING SERVICES LTD,02526388                 ,CONTRACT & PROCUREMENT,Private Contractors,Environmental and Regulatory Services
Swale Borough Council,29UM,08/08/2018,1161190,282.60,NORTHSHORE DESIGNS LIMITED,                         ,PROPERTY SERVICES,Protective Clothing,Internal Trading Cost Centres
Swale Borough Council,29UM,08/08/2018,1160725,7.50,O2 (UK) LTD,1743099                  ,COMMUNITY SAFETY,Cellphone,Environmental and Regulatory Services
Swale Borough Council,29UM,08/08/2018,1160725,7.50,O2 (UK) LTD,1743099                  ,PLANNING SERVICES,Cellphone,Planning and Development Services
Swale Borough Council,29UM,08/08/2018,1160725,7.50,O2 (UK) LTD,1743099                  ,PLANNING SERVICES,Cellphone,Planning and Development Services
Swale Borough Council,29UM,08/08/2018,1160725,7.50,O2 (UK) LTD,1743099                  ,ECONOMIC DEVELOPMENT,Cellphone,Planning and Development Services
Swale Borough Council,29UM,08/08/2018,1160725,17.50,O2 (UK) LTD,1743099                  ,EMERGENCY PLANNING,Cellphone,Central Services to the Public
Swale Borough Council,29UM,08/08/2018,1160725,16.60,O2 (UK) LTD,1743099                  ,SERVICE DELIVERY,Cellphone,Cultural and Related Services
Swale Borough Council,29UM,08/08/2018,1160725,24.00,O2 (UK) LTD,1743099                  ,HOUSING SERVICES,Cellphone,Housing
Swale Borough Council,29UM,08/08/2018,1160725,15.00,O2 (UK) LTD,1743099                  ,REVENUE SERVICES,Cellphone,Housing
Swale Borough Council,29UM,08/08/2018,1160725,15.00,O2 (UK) LTD,1743099                  ,LICENCING,Cellphone,Internal Trading Cost Centres
Swale Borough Council,29UM,08/08/2018,1160725,7.50,O2 (UK) LTD,1743099                  ,ECONOMY & COMMUNITIES,Cellphone,Internal Trading Cost Centres
Swale Borough Council,29UM,08/08/2018,1160725,57.46,O2 (UK) LTD,1743099                  ,PROPERTY SERVICES,Cellphone,Internal Trading Cost Centres
Swale Borough Council,29UM,08/08/2018,1160725,15.00,O2 (UK) LTD,1743099                  ,TOURISM & SPORTS DEVELOPMENT,Cellphone,Internal Trading Cost Centres
Swale Borough Council,29UM,08/08/2018,1160725,20.50,O2 (UK) LTD,1743099                  ,ECONOMIC DEVELOPMENT,Cellphone,Internal Trading Cost Centres
Swale Borough Council,29UM,08/08/2018,1160725,8.61,O2 (UK) LTD,1743099                  ,SERVICE DELIVERY,Cellphone,Internal Trading Cost Centres
Swale Borough Council,29UM,08/08/2018,1160725,65.00,O2 (UK) LTD,1743099                  ,CONTRACT & PROCUREMENT,Cellphone,Internal Trading Cost Centres
Swale Borough Council,29UM,08/08/2018,1160725,7.00,O2 (UK) LTD,1743099                  ,MKS ENVIRONMENTAL SERVICES,Cellphone,Internal Trading Cost Centres
Swale Borough Council,29UM,08/08/2018,1160725,58.42,O2 (UK) LTD,1743099                  ,ENVIRONMENTAL RESPONSE TEAM,Cellphone,Internal Trading Cost Centres
Swale Borough Council,29UM,08/08/2018,1160725,8.04,O2 (UK) LTD,1743099                  ,PLANNING SERVICES,Cellphone,Internal Trading Cost Centres
Swale Borough Council,29UM,08/08/2018,1160725,45.00,O2 (UK) LTD,1743099                  ,LEISURE & OPEN SPACES,Cellphone,Internal Trading Cost Centres
Swale Borough Council,29UM,08/08/2018,1160725,14.50,O2 (UK) LTD,1743099                  ,CHIEF EXECUTIVE,Cellphone,Internal Trading Cost Centres
Swale Borough Council,29UM,08/08/2018,1160725,7.50,O2 (UK) LTD,1743099                  ,DIRECTOR OF REGENERATION,Cellphone,Internal Trading Cost Centres
Swale Borough Council,29UM,08/08/2018,1160725,22.10,O2 (UK) LTD,1743099                  ,COMMISSIONING & CUSTOMER CONTACT,Cellphone,Internal Trading Cost Centres
Swale Borough Council,29UM,08/08/2018,1160725,7.50,O2 (UK) LTD,1743099                  ,COMMISSIONING & CUSTOMER CONTACT,Cellphone,Internal Trading Cost Centres
Swale Borough Council,29UM,08/08/2018,1160725,7.50,O2 (UK) LTD,1743099                  ,POLICY,Cellphone,Internal Trading Cost Centres
Swale Borough Council,29UM,08/08/2018,1160725,5.97,O2 (UK) LTD,1743099                  ,COMMUNICATIONS,Cellphone,Internal Trading Cost Centres
Swale Borough Council,29UM,08/08/2018,1160725,32.00,O2 (UK) LTD,1743099                  ,ENVIRONMENTAL RESPONSE TEAM,Cellphone,Internal Trading Cost Centres
Swale Borough Council,29UM,08/08/2018,1160725,22.50,O2 (UK) LTD,1743099                  ,MKS LEGAL SERVICES,Cellphone,Internal Trading Cost Centres
Swale Borough Council,29UM,08/08/2018,1160725,7.50,O2 (UK) LTD,1743099                  ,FINANCIAL SERVICES,Cellphone,Internal Trading Cost Centres
Swale Borough Council,29UM,08/08/2018,1160725,3.00,O2 (UK) LTD,1743099                  ,PLANNING SERVICES,Cellphone,Planning and Development Services
Swale Borough Council,29UM,08/08/2018,1160725,40.51,O2 (UK) LTD,1743099                  ,HOUSING SERVICES,Cellphone,Housing
Swale Borough Council,29UM,08/08/2018,1160725,16.00,O2 (UK) LTD,1743099                  ,ENVIRONMENTAL RESPONSE TEAM,Cellphone,Environmental and Regulatory Services
Swale Borough Council,29UM,08/08/2018,1160725,7.50,O2 (UK) LTD,1743099                  ,TOURISM & SPORTS DEVELOPMENT,Cellphone,Cultural and Related Services
Swale Borough Council,29UM,08/08/2018,1160725,42.50,O2 (UK) LTD,1743099                  ,HOUSING SERVICES,Cellphone,Housing
Swale Borough Council,29UM,08/08/2018,1161321,366.01,OBSIDIAN SECURITY LTD,                         ,COMMUNITY SAFETY,Non-Planned Building Maintenance,Cultural and Related Services
Swale Borough Council,29UM,08/08/2018,1161325,-366.00,OBSIDIAN SECURITY LTD,                         ,COMMUNITY SAFETY,Non-Planned Building Maintenance,Cultural and Related Services
Swale Borough Council,29UM,08/08/2018,1161329,444.75,OBSIDIAN SECURITY LTD,                         ,PROPERTY SERVICES,Non-Planned Building Maintenance,Corporate & Democratic Core
Swale Borough Council,29UM,08/08/2018,1161314,1700.00,PHLORUM LTD,04967256                 ,MKS ENVIRONMENTAL SERVICES,Consultancy/Specialist Advice,Environmental and Regulatory Services
Swale Borough Council,29UM,08/08/2018,1161189,555.55,PROJECTORPOINT.CO.UK,07474288                 ,MKS ICT,Payments in Year,Ledger/Suspense Codes
Swale Borough Council,29UM,08/08/2018,1161128,960.00,QUINNEYS LTD,4355510                  ,SERVICE DELIVERY,Building Maintenance - Reactive,Cultural and Related Services
Swale Borough Council,29UM,08/08/2018,1161128,640.00,QUINNEYS LTD,4355510                  ,SERVICE DELIVERY,Building Maintenance - Reactive,Cultural and Related Services
Swale Borough Council,29UM,08/08/2018,1161336,160.00,R & S INCE TARMACING LTD,4825501                  ,CAR PARKS,Maintenance - Grounds,Highway and Transport Services
Swale Borough Council,29UM,08/08/2018,1161336,170.00,R & S INCE TARMACING LTD,4825501                  ,CAR PARKS,Maintenance - Grounds,Highway and Transport Services
Swale Borough Council,29UM,08/08/2018,1161276,375.00,RURAL PLANNING LTD,4426249                  ,PLANNING SERVICES,Fees and Services,Planning and Development Services
Swale Borough Council,29UM,08/08/2018,1161171,433.33,REDACTED PERSONAL INFORMATION,                         ,HOUSING SERVICES,Staying Put small repairs (contractors),Housing
Swale Borough Council,29UM,08/08/2018,1161172,406.67,REDACTED PERSONAL INFORMATION,                         ,HOUSING SERVICES,Staying Put small repairs (contractors),Housing
Swale Borough Council,29UM,08/08/2018,1161295,450.00,SITTINGBOURNE CARNIVAL ASSOCIATION,                         ,ECONOMY & COMMUNITIES,Grants & Subscriptions,Central Services to the Public
Swale Borough Council,29UM,08/08/2018,1161294,2350.00,SITTINGBOURNE FOOD BANK,                         ,ECONOMY & COMMUNITIES,Grants & Subscriptions,Central Services to the Public
Swale Borough Council,29UM,08/08/2018,1161418,10000.00,SOUTH EAST BUILDING CO LTD,1786838                  ,HOUSING SERVICES,Housing Renovation Grants,Not used in this Structure
Swale Borough Council,29UM,08/08/2018,1161248,1585.01,SOUTH EAST WATER,2679874                  ,CONTRACT & PROCUREMENT,Water - Metered,Environmental and Regulatory Services
Swale Borough Council,29UM,08/08/2018,1161285,400.00,ST BARTHOLOMEWS CHURCH,                         ,TOURISM & SPORTS DEVELOPMENT,Grants & Subscriptions,Cultural and Related Services
Swale Borough Council,29UM,08/08/2018,1161420,2979.00,T.G. GARDEN AND PROPERTY MAINTENANCE,                         ,HOUSING SERVICES,Housing Renovation Grants,Not used in this Structure
Swale Borough Council,29UM,08/08/2018,1161184,1060.00,THE CO-OPERATIVE FUNERALCARE,30808R                   ,MKS ENVIRONMENTAL SERVICES,Funeral Expenses,Environmental and Regulatory Services
Swale Borough Council,29UM,08/08/2018,1161275,1425.00,THE OYSTER PARTNERSHIP,05020374                 ,PLANNING SERVICES,Agency/Contract Staff,Planning and Development Services
Swale Borough Council,29UM,08/08/2018,1161351,7236.58,THOMSON REUTERS,1679046                  ,MKS LEGAL SERVICES,"Books, Journals & e - resources",Internal Trading Cost Centres
Swale Borough Council,29UM,08/08/2018,1161339,530.00,THREE TOWNS OFFICE EQUIPMENT LTD,                         ,PLANNING SERVICES,Furniture,Internal Trading Cost Centres
Swale Borough Council,29UM,08/08/2018,1161282,272.20,VANITORIALS LIMITED,3952938                  ,PROPERTY SERVICES,Cleaning Materials,Internal Trading Cost Centres
Swale Borough Council,29UM,08/08/2018,1161287,560.00,WESTBURY SIGNS LTD,6523147                  ,LEISURE & OPEN SPACES,Signage - External Funded by Grant & Other Income,Cultural and Related Services
Swale Borough Council,29UM,08/08/2018,1161288,490.00,WESTBURY SIGNS LTD,6523147                  ,LEISURE & OPEN SPACES,Signage - External Funded by Grant & Other Income,Cultural and Related Services
Swale Borough Council,29UM,08/08/2018,1161289,378.04,WESTBURY SIGNS LTD,6523147                  ,LEISURE & OPEN SPACES,Signage - External Funded by Grant & Other Income,Cultural and Related Services
Swale Borough Council,29UM,08/08/2018,1161200,386.45,WHISTL UK LIMITED,04417047                 ,REVENUE SERVICES,Postage,Central Services to the Public
Swale Borough Council,29UM,08/08/2018,1161200,193.22,WHISTL UK LIMITED,04417047                 ,REVENUE SERVICES,Postage,Housing
Swale Borough Council,29UM,08/08/2018,1161200,1.26,WHISTL UK LIMITED,04417047                 ,CAR PARKS,Postage,Internal Trading Cost Centres
Swale Borough Council,29UM,08/08/2018,1161200,134.84,WHISTL UK LIMITED,04417047                 ,PROPERTY SERVICES,Postage,Holding Codes
Swale Borough Council,29UM,08/08/2018,1161200,194.45,WHISTL UK LIMITED,04417047                 ,DEMOCRATIC & ELECTORAL SERVICES,Postage,Central Services to the Public
Swale Borough Council,29UM,08/08/2018,1161174,810.00,WILLOW TREE HOME SOLUTIONS LTD,                         ,HOUSING SERVICES,Staying Put small repairs (contractors),Housing
Swale Borough Council,29UM,08/08/2018,1161416,1501.76,WILLOW TREE HOME SOLUTIONS LTD,                         ,HOUSING SERVICES,Housing Renovation Grants,Not used in this Structure
Swale Borough Council,29UM,08/08/2018,1161417,5740.76,WILLOW TREE HOME SOLUTIONS LTD,                         ,HOUSING SERVICES,Housing Renovation Grants,Not used in this Structure
Swale Borough Council,29UM,15/08/2018,1161451,240.00,A.C MACKLIN FENCING,10311550                 ,LEISURE & OPEN SPACES,Maintenance - Grounds,Cultural and Related Services
Swale Borough Council,29UM,15/08/2018,1161451,95.00,A.C MACKLIN FENCING,10311550                 ,LEISURE & OPEN SPACES,Maintenance - Grounds,Cultural and Related Services
Swale Borough Council,29UM,15/08/2018,1161565,7121.50,ACORN MAINTENANCE SERVICES,3546898                  ,HOUSING SERVICES,Housing Renovation Grants,Not used in this Structure
Swale Borough Council,29UM,15/08/2018,1161562,8221.59,ASCENDIT LIFTS LTD,3493530                  ,HOUSING SERVICES,Housing Renovation Grants,Not used in this Structure
Swale Borough Council,29UM,15/08/2018,1161386,830.80,ATLAS FACILITIES MANAGEMENT LTD,05572730                 ,PROPERTY SERVICES,Fees and Services,Trading Undertaking
Swale Borough Council,29UM,15/08/2018,1161392,615.00,BLENWOOD LTD,4383277                  ,LEISURE & OPEN SPACES,Maintenance - Grounds,Cultural and Related Services
Swale Borough Council,29UM,15/08/2018,1161393,338.79,BLENWOOD LTD,4383277                  ,LEISURE & OPEN SPACES,Maintenance - Grounds,Environmental and Regulatory Services
Swale Borough Council,29UM,15/08/2018,1161394,254.03,BLENWOOD LTD,4383277                  ,LEISURE & OPEN SPACES,Maintenance - Grounds,Environmental and Regulatory Services
Swale Borough Council,29UM,15/08/2018,1161395,913.08,BLENWOOD LTD,4383277                  ,LEISURE & OPEN SPACES,Maintenance - Grounds,Cultural and Related Services
Swale Borough Council,29UM,15/08/2018,1161426,1197.71,BT REDCARE,1800000                  ,COMMUNITY SAFETY,CCTV Line Rental,Environmental and Regulatory Services
Swale Borough Council,29UM,15/08/2018,1161302,4000.00,CBRE LTD,3536032                  ,PLANNING SERVICES,Fees and Services,Planning and Development Services
Swale Borough Council,29UM,15/08/2018,1161318,4150.83,COBALT TELEPHONE TECHNOLOGIES LIMITED,03151938                 ,CAR PARKS,Fees - Licence,Highway and Transport Services
Swale Borough Council,29UM,15/08/2018,1161474,6500.00,CUSHMAN & WAKEFIELD DEBENHAM T L LTD,2757768                  ,PROPERTY SERVICES,Fees and Services,Trading Undertaking
Swale Borough Council,29UM,15/08/2018,1161374,550.00,D & D PROPERTY CO LTD,                         ,HOUSING SERVICES,Homelessness  Prevention Services,Housing
Swale Borough Council,29UM,15/08/2018,1161563,490.00,DOLPHIN STAIRLIFTS (KENT),04181846                 ,HOUSING SERVICES,Housing Renovation Grants,Not used in this Structure
Swale Borough Council,29UM,15/08/2018,1161270,950.00,FAMILY HOMES,                         ,HOUSING SERVICES,RDS - Landlord claim on Bond Scheme,Housing
Swale Borough Council,29UM,15/08/2018,1161602,384627.93,HUBER CAR PARK SYST INTL GMBH (DT),                         ,FINANCIAL SERVICES,STC - Capitalised Fees And Charges,Not used in this Structure
Swale Borough Council,29UM,15/08/2018,1161354,600.00,J N CLEARANCE,                         ,CONTRACT & PROCUREMENT,Private Contractors,Environmental and Regulatory Services
Swale Borough Council,29UM,15/08/2018,1161354,1625.00,J N CLEARANCE,                         ,CONTRACT & PROCUREMENT,"Clearance Of Waste,Fly Tipping",Environmental and Regulatory Services
Swale Borough Council,29UM,15/08/2018,1161355,300.00,J N CLEARANCE,                         ,CONTRACT & PROCUREMENT,"Clearance Of Waste,Fly Tipping",Environmental and Regulatory Services
Swale Borough Council,29UM,15/08/2018,1161124,17985.10,KENT COUNTY COUNCIL,                         ,PLANNING SERVICES,Payments in Year,Ledger/Suspense Codes
Swale Borough Council,29UM,15/08/2018,1161124,2965.14,KENT COUNTY COUNCIL,                         ,PLANNING SERVICES,Payments in Year,Ledger/Suspense Codes
Swale Borough Council,29UM,15/08/2018,1161124,143571.60,KENT COUNTY COUNCIL,                         ,PLANNING SERVICES,Payments in Year,Ledger/Suspense Codes
Swale Borough Council,29UM,15/08/2018,1161124,70315.20,KENT COUNTY COUNCIL,                         ,PLANNING SERVICES,Payments in Year,Ledger/Suspense Codes
Swale Borough Council,29UM,15/08/2018,1161124,15738.16,KENT COUNTY COUNCIL,                         ,PLANNING SERVICES,Payments in Year,Ledger/Suspense Codes
Swale Borough Council,29UM,15/08/2018,1161124,3799.62,KENT COUNTY COUNCIL,                         ,PLANNING SERVICES,Payments in Year,Ledger/Suspense Codes
Swale Borough Council,29UM,15/08/2018,1161452,1279.00,KENT MESSENGER LTD,505554                   ,TOURISM & SPORTS DEVELOPMENT,Advertising & Promo - Ext Fund by Grant & Other Income,Cultural and Related Services
Swale Borough Council,29UM,15/08/2018,1161330,300.00,LEMAR LIMITED,04350292                 ,SERVICE DELIVERY,Private Contractors - CIS,Highway and Transport Services
Swale Borough Council,29UM,15/08/2018,1161330,550.00,LEMAR LIMITED,04350292                 ,SERVICE DELIVERY,Private Contractors - CIS,Highway and Transport Services
Swale Borough Council,29UM,15/08/2018,1161331,300.00,LEMAR LIMITED,04350292                 ,SERVICE DELIVERY,Private Contractors - CIS,Highway and Transport Services
Swale Borough Council,29UM,15/08/2018,1161331,798.00,LEMAR LIMITED,04350292                 ,SERVICE DELIVERY,Private Contractors - CIS,Highway and Transport Services
Swale Borough Council,29UM,15/08/2018,1161363,300.00,LEMAR LIMITED,04350292                 ,CAR PARKS,Maintenance - Grounds,Highway and Transport Services
Swale Borough Council,29UM,15/08/2018,1161363,345.00,LEMAR LIMITED,04350292                 ,CAR PARKS,Maintenance - Grounds,Highway and Transport Services
Swale Borough Council,29UM,15/08/2018,1161364,1517.00,MAYLOW CONSTRUCTION LTD,                         ,LEISURE & OPEN SPACES,Maintenance - Grounds,Cultural and Related Services
Swale Borough Council,29UM,15/08/2018,1161164,5950.00,MELENGA BUSINESS SOLUTIONS LTD,06148446                 ,FINANCIAL SERVICES,Agency/Contract Staff,Internal Trading Cost Centres
Swale Borough Council,29UM,15/08/2018,1161397,406.00,MIDLANDS SIGNS LEICESTER LTD,1778323                  ,SERVICE DELIVERY,Private Contractors - CIS,Highway and Transport Services
Swale Borough Council,29UM,15/08/2018,1161397,670.09,MIDLANDS SIGNS LEICESTER LTD,1778323                  ,SERVICE DELIVERY,Private Contractors - CIS,Highway and Transport Services
Swale Borough Council,29UM,15/08/2018,1161361,4673.33,MODERN MINDSET LTD,                         ,DEMOCRATIC & ELECTORAL SERVICES,Performance Fund Expenditure,Ledger/Suspense Codes
Swale Borough Council,29UM,15/08/2018,1161449,250.00,REDACTED PERSONAL INFORMATION,                         ,ENVIRONMENTAL RESPONSE TEAM,Legal Fees,Planning and Development Services
Swale Borough Council,29UM,15/08/2018,1161449,50.00,REDACTED PERSONAL INFORMATION,                         ,ENVIRONMENTAL RESPONSE TEAM,Legal Fees,Planning and Development Services
Swale Borough Council,29UM,15/08/2018,1161532,276.91,NPOWER,                         ,LEISURE & OPEN SPACES,Electricity,Cultural and Related Services
Swale Borough Council,29UM,15/08/2018,1161542,3150.00,P BINNIE CONSULTANCY LTD,07794784                 ,ECONOMIC DEVELOPMENT,Consultancy/Specialist Advice,Planning and Development Services
Swale Borough Council,29UM,15/08/2018,1160573,16600.00,PARAMOUNT INDEPENDENT PROPERTY SERVICES,                         ,HOUSING SERVICES,NL (Nightly Lets) - Homelessness Landlord Payments,Housing
Swale Borough Council,29UM,15/08/2018,1161599,15697.00,PEAC HOLDINGS (UK) LTD (DT),3088213                  ,LEISURE & OPEN SPACES,Contracts,Cultural and Related Services
Swale Borough Council,29UM,15/08/2018,1161434,400.88,PREMIER PAPER GROUP LTD,                         ,PROPERTY SERVICES,Paper,Internal Trading Cost Centres
Swale Borough Council,29UM,15/08/2018,1161473,1092.07,ROYAL MAIL GROUP LTD,4138203                  ,PROPERTY SERVICES,Postage,Holding Codes
Swale Borough Council,29UM,15/08/2018,1161472,1445.03,SCOTTISH WATER BUSINESS STREAM LTD,SC294924                 ,CONTRACT & PROCUREMENT,Water - Metered,Environmental and Regulatory Services
Swale Borough Council,29UM,15/08/2018,1161367,11660.43,SERCO LEISURE OPERATING LIMITED,04687478                 ,LEISURE & OPEN SPACES,Procurement Contracts Only,Cultural and Related Services
Swale Borough Council,29UM,15/08/2018,1161598,2968.00,SERCO PAISA LTD - (DT),04908482                 ,LEISURE & OPEN SPACES,Contracts,Cultural and Related Services
Swale Borough Council,29UM,15/08/2018,1161469,468.79,SIEMENS FINANCIAL SERVICES LIMITED,646166                   ,PROPERTY SERVICES,Coffee Machines - Rental,Corporate & Democratic Core
Swale Borough Council,29UM,15/08/2018,1161389,29.87,SODEXO MOTIVATION SOLUTIONS UK LTD,2680629                  ,HUMAN RESOURCES,Fees and Services,Corporate & Democratic Core
Swale Borough Council,29UM,15/08/2018,1161311,487.67,SOUTH EAST WATER,2679874                  ,LEISURE & OPEN SPACES,Water - Metered,Cultural and Related Services
Swale Borough Council,29UM,15/08/2018,1161366,7700.00,SWALE COMMUNITY LEISURE LIMITED,31132R                   ,LEISURE & OPEN SPACES,Procurement Contracts Only,Cultural and Related Services
Swale Borough Council,29UM,15/08/2018,1161368,12510.14,SWALE COMMUNITY LEISURE LIMITED,31132R                   ,LEISURE & OPEN SPACES,Procurement Contracts Only,Cultural and Related Services
Swale Borough Council,29UM,15/08/2018,1160543,5232.73,THE NATIONAL LEAFLET COMPANY,02569979                 ,COMMUNICATIONS,Postage,Corporate & Democratic Core
Swale Borough Council,29UM,15/08/2018,1161467,344.08,THE NATIONAL LEAFLET COMPANY,02569979                 ,COMMUNITY SAFETY,Fees and Services,Environmental and Regulatory Services
Swale Borough Council,29UM,15/08/2018,1161448,1425.00,THE OYSTER PARTNERSHIP,05020374                 ,PLANNING SERVICES,Agency/Contract Staff,Planning and Development Services
Swale Borough Council,29UM,15/08/2018,1161008,-33.84,UNISON,                         ,HUMAN RESOURCES,Payroll - Unison Deductions Admin Charge,Corporate & Democratic Core
Swale Borough Council,29UM,15/08/2018,1160967,425.47,VR SANI-CO LTD,3588359                  ,CONTRACT & PROCUREMENT,Private Contractors,Environmental and Regulatory Services
Swale Borough Council,29UM,15/08/2018,1161014,425.47,VR SANI-CO LTD,3588359                  ,CONTRACT & PROCUREMENT,Private Contractors,Environmental and Regulatory Services
Swale Borough Council,29UM,15/08/2018,1161447,502.09,WHISTL UK LIMITED,04417047                 ,REVENUE SERVICES,Postage,Central Services to the Public
Swale Borough Council,29UM,15/08/2018,1161447,251.10,WHISTL UK LIMITED,04417047                 ,REVENUE SERVICES,Postage,Housing
Swale Borough Council,29UM,15/08/2018,1161447,13.29,WHISTL UK LIMITED,04417047                 ,CAR PARKS,Postage,Internal Trading Cost Centres
Swale Borough Council,29UM,15/08/2018,1161447,112.18,WHISTL UK LIMITED,04417047                 ,PROPERTY SERVICES,Postage,Holding Codes
Swale Borough Council,29UM,15/08/2018,1161447,126.02,WHISTL UK LIMITED,04417047                 ,DEMOCRATIC & ELECTORAL SERVICES,Postage,Central Services to the Public
Swale Borough Council,29UM,15/08/2018,1161564,1044.77,WILLOW TREE HOME SOLUTIONS LTD,                         ,HOUSING SERVICES,Housing Renovation Grants,Not used in this Structure
Swale Borough Council,29UM,15/08/2018,1161455,18735.63,ZURICH MUNICIPAL,13460                    ,FINANCIAL SERVICES,Supply of Insurance Cover,Internal Trading Cost Centres
Swale Borough Council,29UM,15/08/2018,1161456,11821.64,ZURICH MUNICIPAL,13460                    ,FINANCIAL SERVICES,Supply of Insurance Cover,Internal Trading Cost Centres
Swale Borough Council,29UM,15/08/2018,1161457,1524.70,ZURICH MUNICIPAL,13460                    ,FINANCIAL SERVICES,Supply of Insurance Cover,Internal Trading Cost Centres
Swale Borough Council,29UM,15/08/2018,1161458,1210.32,ZURICH MUNICIPAL,13460                    ,FINANCIAL SERVICES,Supply of Insurance Cover,Internal Trading Cost Centres
Swale Borough Council,29UM,15/08/2018,1161459,6633.65,ZURICH MUNICIPAL,13460                    ,FINANCIAL SERVICES,Supply of Insurance Cover,Internal Trading Cost Centres
Swale Borough Council,29UM,15/08/2018,1161377,5000.00,ZURICH MUNICIPAL MANAGEMENT SERVICES,2741055                  ,AUDIT,Consultancy/Specialist Advice,Corporate & Democratic Core
Swale Borough Council,29UM,22/08/2018,1161464,438.73,ADELANTE SOFTWARE LTD,4450760                  ,REVENUE SERVICES,Commission Paid,Central Services to the Public
Swale Borough Council,29UM,22/08/2018,1161464,6.26,ADELANTE SOFTWARE LTD,4450760                  ,REVENUE SERVICES,Commission Paid,Housing
Swale Borough Council,29UM,22/08/2018,1161464,181.77,ADELANTE SOFTWARE LTD,4450760                  ,EXCHEQUER,Commission Paid,Internal Trading Cost Centres
Swale Borough Council,29UM,22/08/2018,1161387,2758.95,ALLPAY LTD,02933191                 ,REVENUE SERVICES,Bank Charges Pay Point,Central Services to the Public
Swale Borough Council,29UM,22/08/2018,1161387,30.00,ALLPAY LTD,02933191                 ,REVENUE SERVICES,Bank Charges Pay Point,Housing
Swale Borough Council,29UM,22/08/2018,1161387,27.70,ALLPAY LTD,02933191                 ,EXCHEQUER,Bank Charges Pay Point,Internal Trading Cost Centres
Swale Borough Council,29UM,22/08/2018,1161616,191.97,ALLSTAR BUSINESS SOLUTIONS LTD - (DT),1073098                  ,SERVICE DELIVERY,Petrol/Derv & Oil,Cultural and Related Services
Swale Borough Council,29UM,22/08/2018,1161616,365.11,ALLSTAR BUSINESS SOLUTIONS LTD - (DT),1073098                  ,ENVIRONMENTAL RESPONSE TEAM,Fuel For Contract Vehicles,Internal Trading Cost Centres
Swale Borough Council,29UM,22/08/2018,1161616,146.48,ALLSTAR BUSINESS SOLUTIONS LTD - (DT),1073098                  ,LEISURE & OPEN SPACES,Fuel For Contract Vehicles,Cultural and Related Services
Swale Borough Council,29UM,22/08/2018,1161616,48.96,ALLSTAR BUSINESS SOLUTIONS LTD - (DT),1073098                  ,ENVIRONMENTAL RESPONSE TEAM,Fuel For Contract Vehicles,Environmental and Regulatory Services
Swale Borough Council,29UM,22/08/2018,1161677,600.00,BATTLES' OVER STEERING COMMITTEE,                         ,ECONOMY & COMMUNITIES,Grants & Subscriptions,Central Services to the Public
Swale Borough Council,29UM,22/08/2018,1161555,2520.00,BLENWOOD LTD,4383277                  ,LEISURE & OPEN SPACES,Maintenance - Grounds,Environmental and Regulatory Services
Swale Borough Council,29UM,22/08/2018,1161557,515.00,BLENWOOD LTD,4383277                  ,LEISURE & OPEN SPACES,Maintenance - Grounds,Environmental and Regulatory Services
Swale Borough Council,29UM,22/08/2018,1161559,4473.79,BLENWOOD LTD,4383277                  ,LEISURE & OPEN SPACES,Maintenance - Grounds,Environmental and Regulatory Services
Swale Borough Council,29UM,22/08/2018,1161689,8466.21,COLDWELL CONSTRUCTION LTD,4814340                  ,HOUSING SERVICES,Housing Renovation Grants,Not used in this Structure
Swale Borough Council,29UM,22/08/2018,1161690,9221.65,COLDWELL CONSTRUCTION LTD,4814340                  ,HOUSING SERVICES,Housing Renovation Grants,Not used in this Structure
Swale Borough Council,29UM,22/08/2018,1161489,359.00,CONTRACT SECURITY SERVICES,2461362                  ,EXCHEQUER,Cash Security,Internal Trading Cost Centres
Swale Borough Council,29UM,22/08/2018,1161489,3413.28,CONTRACT SECURITY SERVICES,2461362                  ,CAR PARKS,Cash Security,Highway and Transport Services
Swale Borough Council,29UM,22/08/2018,1161554,650.00,COUNTRYWIDE PRODUCTIONS,                         ,ECONOMY & COMMUNITIES,Grants & Subscriptions,Central Services to the Public
Swale Borough Council,29UM,22/08/2018,1161525,572.00,DISCLOSURE & BARRING SERVICE (DT),                         ,LICENCING,Fees and Services,Environmental and Regulatory Services
Swale Borough Council,29UM,22/08/2018,1161696,2430.00,DOLPHIN STAIRLIFTS (KENT),04181846                 ,HOUSING SERVICES,Housing Renovation Grants,Not used in this Structure
Swale Borough Council,29UM,22/08/2018,1161324,2245.00,FIRST STOP HOUSING SOLUTION LTD,                         ,HOUSING SERVICES,NL (Nightly Lets) - Homelessness Landlord Payments,Housing
Swale Borough Council,29UM,22/08/2018,1161492,780.00,FURLEY PAGE LLP,OC317755                 ,FINANCIAL SERVICES,Legal Fees,Internal Trading Cost Centres
Swale Borough Council,29UM,22/08/2018,1161695,253.40,HIGHER ELEVATION LTD,                         ,HOUSING SERVICES,Housing Renovation Grants,Not used in this Structure
Swale Borough Council,29UM,22/08/2018,1161686,5400.00,HUBBARD & HOUGHTON CONSTRUCTION LTD,                         ,HOUSING SERVICES,Housing Renovation Grants,Not used in this Structure
Swale Borough Council,29UM,22/08/2018,1161687,6223.50,HUBBARD & HOUGHTON CONSTRUCTION LTD,                         ,HOUSING SERVICES,Housing Renovation Grants,Not used in this Structure
Swale Borough Council,29UM,22/08/2018,1161688,1332.90,HUBBARD & HOUGHTON CONSTRUCTION LTD,                         ,HOUSING SERVICES,Housing Renovation Grants,Not used in this Structure
Swale Borough Council,29UM,22/08/2018,1161585,500.00,REDACTED PERSONAL INFORMATION,                         ,TOURISM & SPORTS DEVELOPMENT,Grants & Subscriptions,Cultural and Related Services
Swale Borough Council,29UM,22/08/2018,1161583,250.00,REDACTED PERSONAL INFORMATION,                         ,TOURISM & SPORTS DEVELOPMENT,Grants & Subscriptions,Cultural and Related Services
Swale Borough Council,29UM,22/08/2018,1161693,6812.25,J & D SYSTEMS,                         ,HOUSING SERVICES,Housing Renovation Grants,Not used in this Structure
Swale Borough Council,29UM,22/08/2018,1161694,7826.25,J & D SYSTEMS,                         ,HOUSING SERVICES,Housing Renovation Grants,Not used in this Structure
Swale Borough Council,29UM,22/08/2018,1161697,4000.00,J.C. HEATING & BUILDING SERVICES,                         ,HOUSING SERVICES,Housing Renovation Grants,Not used in this Structure
Swale Borough Council,29UM,22/08/2018,1161385,7998.92,KENT COUNTY COUNCIL,                         ,COMMISSIONING & CUSTOMER CONTACT,Contracts,Internal Trading Cost Centres
Swale Borough Council,29UM,22/08/2018,1161628,950.00,KENT COUNTY COUNCIL,                         ,ECONOMY & COMMUNITIES,Grants & Subscriptions,Central Services to the Public
Swale Borough Council,29UM,22/08/2018,1161315,4652.65,KINGDOM SECURITY LIMITED,2795197                  ,ENVIRONMENTAL RESPONSE TEAM,Fees and Services,Planning and Development Services
Swale Borough Council,29UM,22/08/2018,1161515,3675.00,LESSHOMELESS LIMITED,08458851                 ,HOUSING SERVICES,NL (Nightly Lets) - Homelessness Landlord Payments,Housing
Swale Borough Council,29UM,22/08/2018,1161517,5322.00,LESSHOMELESS LIMITED,08458851                 ,HOUSING SERVICES,NL (Nightly Lets) - Homelessness Landlord Payments,Housing
Swale Borough Council,29UM,22/08/2018,1161620,1376.36,LLOYDS BANK - (DT),                         ,FINANCIAL SERVICES,Bank Charges,Corporate & Democratic Core
Swale Borough Council,29UM,22/08/2018,1161645,532.00,M.T.S. CLEANSING SERVICES LTD,2045340                  ,LEISURE & OPEN SPACES,Clearing Cesspools,Cultural and Related Services
Swale Borough Council,29UM,22/08/2018,1161722,837086.00,MAIDSTONE BOROUGH COUNCIL - DT,                         ,FINANCIAL SERVICES,Tariff to Gvt,Taxation and Non-Specific Grant Income
Swale Borough Council,29UM,22/08/2018,1161092,13780.81,MATRIX SCM LTD,2227962                  ,HUMAN RESOURCES,Agency/Contract Staff,Internal Trading Cost Centres
Swale Borough Council,29UM,22/08/2018,1161304,14117.90,MATRIX SCM LTD,2227962                  ,HUMAN RESOURCES,Agency/Contract Staff,Internal Trading Cost Centres
Swale Borough Council,29UM,22/08/2018,1161466,23282.19,MATRIX SCM LTD,2227962                  ,HUMAN RESOURCES,Agency/Contract Staff,Internal Trading Cost Centres
Swale Borough Council,29UM,22/08/2018,1161611,8831.19,MATRIX SCM LTD,2227962                  ,HUMAN RESOURCES,Agency/Contract Staff,Internal Trading Cost Centres
Swale Borough Council,29UM,22/08/2018,1160979,1760.00,MEDWAY ACCOMMODATION LIMITED,                         ,HOUSING SERVICES,B & B - Homelessness Landlord Payments,Housing
Swale Borough Council,29UM,22/08/2018,1160979,366.67,MEDWAY ACCOMMODATION LIMITED,                         ,HOUSING SERVICES,B & B - Homelessness Landlord Payments,Housing
Swale Borough Council,29UM,22/08/2018,1161144,1792.00,MEDWAY ACCOMMODATION LIMITED,                         ,HOUSING SERVICES,B & B - Homelessness Landlord Payments,Housing
Swale Borough Council,29UM,22/08/2018,1161144,373.33,MEDWAY ACCOMMODATION LIMITED,                         ,HOUSING SERVICES,B & B - Homelessness Landlord Payments,Housing
Swale Borough Council,29UM,22/08/2018,1161352,836.00,REDACTED PERSONAL INFORMATION,                         ,HOUSING SERVICES,B & B - Homelessness Landlord Payments,Housing
Swale Borough Council,29UM,22/08/2018,1161494,1276.00,REDACTED PERSONAL INFORMATION,                         ,HOUSING SERVICES,B & B - Homelessness Landlord Payments,Housing
Swale Borough Council,29UM,22/08/2018,1161651,1211.00,REDACTED PERSONAL INFORMATION,                         ,HOUSING SERVICES,B & B - Homelessness Landlord Payments,Housing
Swale Borough Council,29UM,22/08/2018,1161584,500.00,REDACTED PERSONAL INFORMATION,                         ,TOURISM & SPORTS DEVELOPMENT,Grants & Subscriptions,Cultural and Related Services
Swale Borough Council,29UM,22/08/2018,1161186,529.50,NEW LEAF SUPPORT LTD,                         ,HOUSING SERVICES,NL (Nightly Lets) - Homelessness Landlord Payments,Housing
Swale Borough Council,29UM,22/08/2018,1161485,1474.90,NEWAUTO LTD T/A MOGOUK,3051444                  ,LICENCING,Equipment Purchase,Environmental and Regulatory Services
Swale Borough Council,29UM,22/08/2018,1161547,300.00,NEWINGTON VILLAGE HALL,                         ,ECONOMY & COMMUNITIES,Grants & Subscriptions,Central Services to the Public
Swale Borough Council,29UM,22/08/2018,1161661,328.56,REDACTED PERSONAL INFORMATION,                         ,SERVICE DELIVERY,Private Contractors - CIS,Environmental and Regulatory Services
Swale Borough Council,29UM,22/08/2018,1161575,711.00,NLA MEDIA ACCESS,3003569                  ,COMMUNICATIONS,Fees - Licence,Internal Trading Cost Centres
Swale Borough Council,29UM,22/08/2018,1161488,270.78,NORTHSHORE DESIGNS LIMITED,                         ,ENVIRONMENTAL RESPONSE TEAM,Protective Clothing,Internal Trading Cost Centres
Swale Borough Council,29UM,22/08/2018,1161531,297.17,NPOWER,                         ,CAR PARKS,Electricity,Highway and Transport Services
Swale Borough Council,29UM,22/08/2018,1161622,260.72,NPOWER,3432100                  ,TOURISM & SPORTS DEVELOPMENT,Electricity,Cultural and Related Services
Swale Borough Council,29UM,22/08/2018,1161490,2750.00,PATHFINDER DEVELOPMENT CONSULTANTS LTD,08666821                 ,PLANNING SERVICES,Fees and Services,Planning and Development Services
Swale Borough Council,29UM,22/08/2018,1161618,923.47,PATROL,                         ,CAR PARKS,Parking Adjudication Fees,Highway and Transport Services
Swale Borough Council,29UM,22/08/2018,1161618,923.48,PATROL,                         ,CAR PARKS,Parking Adjudication Fees,Highway and Transport Services
Swale Borough Council,29UM,22/08/2018,1161281,415.00,PREMIER INN (ATOS) DT,                         ,HOUSING SERVICES,B & B - Homelessness Landlord Payments,Housing
Swale Borough Council,29UM,22/08/2018,1161728,6.50,RBS PURCHASING CARD (DT) - GRAVESHAM BC,,DEMOCRATIC & ELECTORAL SERVICES,Catering Provisions,Internal Trading Cost Centres
Swale Borough Council,29UM,22/08/2018,1161729,8.21,RBS PURCHASING CARD (DT) - THE COURTYARD BROGDALE,,ECONOMY & COMMUNITIES,Catering Provisions,Internal Trading Cost Centres
Swale Borough Council,29UM,22/08/2018,1161730,91.00,RBS PURCHASING CARD (DT) - OFFICE FURNITURE ONLINE,,PROPERTY SERVICES,Equipment Purchase,Corporate & Democratic Core
Swale Borough Council,29UM,22/08/2018,1161730,-161.00,RBS PURCHASING CARD (DT) - OFFICE FURNITURE ONLINE,,PROPERTY SERVICES,Equipment Purchase,Corporate & Democratic Core
Swale Borough Council,29UM,22/08/2018,1161731,250.00,RBS PURCHASING CARD (DT) - NATIONWIDE DWS TONBRIDGE,                         ,DEMOCRATIC & ELECTORAL SERVICES,Repair And Maintenance,Corporate & Democratic Core
Swale Borough Council,29UM,22/08/2018,1161732,61.48,RBS PURCHASING CARD (DT) - AMAZON,                         ,ENVIRONMENTAL RESPONSE TEAM,Equipment Purchase,Internal Trading Cost Centres
Swale Borough Council,29UM,22/08/2018,1161732,540.83,RBS PURCHASING CARD (DT) - AO RETAIL LTD,                         ,MKS ICT,Payments in Year,Ledger/Suspense Codes
Swale Borough Council,29UM,22/08/2018,1161732,61.48,RBS PURCHASING CARD (DT) - AMAZON,                         ,LEISURE & OPEN SPACES,Equipment Purchase,Cultural and Related Services
Swale Borough Council,29UM,22/08/2018,1161745,15.00,RBS PURCHASING CARD (DT) - CITIZENCARD,,ECONOMY & COMMUNITIES,Fees and Services,Planning and Development Services
Swale Borough Council,29UM,22/08/2018,1161749,11.00,RBS PURCHASING CARD (DT) - BRITISH GAS,,HOUSING SERVICES,Gas,Housing
Swale Borough Council,29UM,22/08/2018,1161749,49.00,RBS PURCHASING CARD (DT) - BRITISH GAS,,HOUSING SERVICES,Gas,Housing
Swale Borough Council,29UM,22/08/2018,1161754,14.58,RBS PURCHASING CARD (DT) - MORRISONS,                         ,CHIEF EXECUTIVE,Catering Provisions,Corporate & Democratic Core
Swale Borough Council,29UM,22/08/2018,1161754,665.83,RBS PURCHASING CARD (DT) - HP INC UK LTD,                         ,CHIEF EXECUTIVE,Equipment Purchase,Internal Trading Cost Centres
Swale Borough Council,29UM,22/08/2018,1161756,297.00,RBS PURCHASING CARD (DT) - HMCTS,                         ,REVENUE SERVICES,Fees and Services,Central Services to the Public
Swale Borough Council,29UM,22/08/2018,1161757,11.98,RBS PURCHASING CARD (DT) - AMAZON,,MKS LEGAL SERVICES,Stationery,Internal Trading Cost Centres
Swale Borough Council,29UM,22/08/2018,1161757,31.99,RBS PURCHASING CARD (DT) - AMAZON,,MKS LEGAL SERVICES,Equipment Purchase,Internal Trading Cost Centres
Swale Borough Council,29UM,22/08/2018,1161406,2086.00,REARDON PROPERTIES,                         ,HOUSING SERVICES,NL (Nightly Lets) - Homelessness Landlord Payments,Housing
Swale Borough Council,29UM,22/08/2018,1161407,2086.00,REARDON PROPERTIES,                         ,HOUSING SERVICES,NL (Nightly Lets) - Homelessness Landlord Payments,Housing
Swale Borough Council,29UM,22/08/2018,1161408,2086.00,REARDON PROPERTIES,                         ,HOUSING SERVICES,NL (Nightly Lets) - Homelessness Landlord Payments,Housing
Swale Borough Council,29UM,22/08/2018,1161409,1961.00,REARDON PROPERTIES,                         ,HOUSING SERVICES,NL (Nightly Lets) - Homelessness Landlord Payments,Housing
Swale Borough Council,29UM,22/08/2018,1161410,1911.00,REARDON PROPERTIES,                         ,HOUSING SERVICES,NL (Nightly Lets) - Homelessness Landlord Payments,Housing
Swale Borough Council,29UM,22/08/2018,1161411,1911.00,REARDON PROPERTIES,                         ,HOUSING SERVICES,NL (Nightly Lets) - Homelessness Landlord Payments,Housing
Swale Borough Council,29UM,22/08/2018,1161412,1911.00,REARDON PROPERTIES,                         ,HOUSING SERVICES,NL (Nightly Lets) - Homelessness Landlord Payments,Housing
Swale Borough Council,29UM,22/08/2018,1161413,1986.00,REARDON PROPERTIES,                         ,HOUSING SERVICES,NL (Nightly Lets) - Homelessness Landlord Payments,Housing
Swale Borough Council,29UM,22/08/2018,1161603,318.60,S & J SERVICES,                         ,LEISURE & OPEN SPACES,Maintenance - Grounds,Cultural and Related Services
Swale Borough Council,29UM,22/08/2018,1161691,5752.56,SOUTH EAST BUILDING CO LTD,1786838                  ,HOUSING SERVICES,Housing Renovation Grants,Not used in this Structure
Swale Borough Council,29UM,22/08/2018,1161692,10380.40,SOUTH EAST BUILDING CO LTD,1786838                  ,HOUSING SERVICES,Housing Renovation Grants,Not used in this Structure
Swale Borough Council,29UM,22/08/2018,1161642,360.00,SOUTHERN LIGHTNING ENGINEERS LTD,2830426                  ,PROPERTY SERVICES,Service Contracts,Corporate & Democratic Core
Swale Borough Council,29UM,22/08/2018,1161672,117417.96,SPIRIT OF SITTINGBOURNE LLP,OC377168                 ,FINANCIAL SERVICES,STC - Capitalised Fees And Charges,Not used in this Structure
Swale Borough Council,29UM,22/08/2018,1161673,550925.71,SPIRIT OF SITTINGBOURNE LLP,OC377168                 ,FINANCIAL SERVICES,STC - Capitalised Fees And Charges,Not used in this Structure
Swale Borough Council,29UM,22/08/2018,1161526,750.00,REDACTED PERSONAL INFORMATION,                         ,HOUSING SERVICES,RDS - Landlord claim on Bond Scheme,Housing
Swale Borough Council,29UM,22/08/2018,1161625,700.00,SWALE COMMUNITY LEISURE LTD,                         ,TOURISM & SPORTS DEVELOPMENT,Grants & Subscriptions,Cultural and Related Services
Swale Borough Council,29UM,22/08/2018,1161378,1619.66,THE ALEXANDER CENTRE TRUST LIMITED,07281634                 ,COMMISSIONING & CUSTOMER CONTACT,Rent,Internal Trading Cost Centres
Swale Borough Council,29UM,22/08/2018,1161543,1418.87,THE COPYRIGHT LICENSING AGENCY LTD,                         ,COMMUNICATIONS,Fees - Licence,Internal Trading Cost Centres
Swale Borough Council,29UM,22/08/2018,1161604,1425.00,THE OYSTER PARTNERSHIP,05020374                 ,PLANNING SERVICES,Agency/Contract Staff,Planning and Development Services
Swale Borough Council,29UM,22/08/2018,1161358,1499.00,TRAFALGAR TAVERN LTD,07999329                 ,HOUSING SERVICES,B & B - Homelessness Landlord Payments,Housing
Swale Borough Council,29UM,22/08/2018,1161306,8864.09,TUNBRIDGE WELLS BOROUGH COUNCIL,                         ,MKS ENVIRONMENTAL SERVICES,MKS Charges for Environmental Services,Internal Trading Cost Centres
Swale Borough Council,29UM,22/08/2018,1161306,43318.89,TUNBRIDGE WELLS BOROUGH COUNCIL,                         ,MKS ENVIRONMENTAL SERVICES,MKS Charges for Environmental Services,Internal Trading Cost Centres
Swale Borough Council,29UM,22/08/2018,1161306,63540.17,TUNBRIDGE WELLS BOROUGH COUNCIL,                         ,MKS ENVIRONMENTAL SERVICES,MKS Charges for Environmental Services,Internal Trading Cost Centres
Swale Borough Council,29UM,22/08/2018,1161306,1121.10,TUNBRIDGE WELLS BOROUGH COUNCIL,                         ,MKS ENVIRONMENTAL SERVICES,MKS Charges for Environmental Services,Internal Trading Cost Centres
Swale Borough Council,29UM,22/08/2018,1161548,776.00,TUNSTALL PARISH COUNCIL,                         ,ECONOMY & COMMUNITIES,Grants & Subscriptions,Central Services to the Public
Swale Borough Council,29UM,22/08/2018,1161647,23.84,VR SANI-CO LTD,3588359                  ,TOURISM & SPORTS DEVELOPMENT,Service Contracts,Cultural and Related Services
Swale Borough Council,29UM,22/08/2018,1161647,12.50,VR SANI-CO LTD,3588359                  ,TOURISM & SPORTS DEVELOPMENT,Service Contracts,Cultural and Related Services
Swale Borough Council,29UM,22/08/2018,1161647,28.17,VR SANI-CO LTD,3588359                  ,TOURISM & SPORTS DEVELOPMENT,Service Contracts,Cultural and Related Services
Swale Borough Council,29UM,22/08/2018,1161647,35.76,VR SANI-CO LTD,3588359                  ,PROPERTY SERVICES,Service Contracts,Cultural and Related Services
Swale Borough Council,29UM,22/08/2018,1161647,5.96,VR SANI-CO LTD,3588359                  ,COMMUNITY SAFETY,Service Contracts,Cultural and Related Services
Swale Borough Council,29UM,22/08/2018,1161647,26.07,VR SANI-CO LTD,3588359                  ,TOURISM & SPORTS DEVELOPMENT,Service Contracts,Cultural and Related Services
Swale Borough Council,29UM,22/08/2018,1161647,26.00,VR SANI-CO LTD,3588359                  ,PROPERTY SERVICES,Service Contracts,Corporate & Democratic Core
Swale Borough Council,29UM,22/08/2018,1161647,214.56,VR SANI-CO LTD,3588359                  ,PROPERTY SERVICES,Service Contracts,Corporate & Democratic Core
Swale Borough Council,29UM,22/08/2018,1161647,50.00,VR SANI-CO LTD,3588359                  ,PROPERTY SERVICES,Service Contracts,Corporate & Democratic Core
Swale Borough Council,29UM,22/08/2018,1161647,14.08,VR SANI-CO LTD,3588359                  ,PROPERTY SERVICES,Service Contracts,Corporate & Democratic Core
Swale Borough Council,29UM,22/08/2018,1161317,541.50,WESTBURY SIGNS LTD,6523147                  ,ENVIRONMENTAL RESPONSE TEAM,Signage - External Funded by Grant & Other Income,Planning and Development Services
Swale Borough Council,29UM,22/08/2018,1161561,1452.29,WHISTL UK LIMITED,04417047                 ,REVENUE SERVICES,Postage,Central Services to the Public
Swale Borough Council,29UM,22/08/2018,1161561,726.14,WHISTL UK LIMITED,04417047                 ,REVENUE SERVICES,Postage,Housing
Swale Borough Council,29UM,22/08/2018,1161561,15.85,WHISTL UK LIMITED,04417047                 ,CAR PARKS,Postage,Internal Trading Cost Centres
Swale Borough Council,29UM,22/08/2018,1161561,133.12,WHISTL UK LIMITED,04417047                 ,PROPERTY SERVICES,Postage,Holding Codes
Swale Borough Council,29UM,22/08/2018,1161561,127.64,WHISTL UK LIMITED,04417047                 ,DEMOCRATIC & ELECTORAL SERVICES,Postage,Central Services to the Public
Swale Borough Council,29UM,22/08/2018,1161519,665.00,WILLOW TREE HOME SOLUTIONS LTD,                         ,HOUSING SERVICES,Staying Put small repairs (contractors),Housing
Swale Borough Council,29UM,22/08/2018,1161724,1629.00,WORLDPAY (DT),07316500                 ,REVENUE SERVICES,Commission Paid,Central Services to the Public
Swale Borough Council,29UM,22/08/2018,1161724,32.62,WORLDPAY (DT),07316500                 ,REVENUE SERVICES,Commission Paid,Central Services to the Public
Swale Borough Council,29UM,22/08/2018,1161724,65.24,WORLDPAY (DT),07316500                 ,REVENUE SERVICES,Commission Paid,Housing
Swale Borough Council,29UM,22/08/2018,1161724,32.62,WORLDPAY (DT),07316500                 ,EXCHEQUER,Commission Paid,Internal Trading Cost Centres
Swale Borough Council,29UM,22/08/2018,1161724,956.41,WORLDPAY (DT),07316500                 ,EXCHEQUER,Commission Paid,Internal Trading Cost Centres
Swale Borough Council,29UM,22/08/2018,1161724,3.33,WORLDPAY (DT),07316500                 ,EXCHEQUER,Commission Paid,Internal Trading Cost Centres
Swale Borough Council,29UM,22/08/2018,1161725,1588.11,WORLDPAY (DT),07316500                 ,REVENUE SERVICES,Commission Paid,Central Services to the Public
Swale Borough Council,29UM,22/08/2018,1161725,22.70,WORLDPAY (DT),07316500                 ,REVENUE SERVICES,Commission Paid,Central Services to the Public
Swale Borough Council,29UM,22/08/2018,1161725,658.30,WORLDPAY (DT),07316500                 ,EXCHEQUER,Commission Paid,Internal Trading Cost Centres
Swale Borough Council,29UM,22/08/2018,1161725,2.42,WORLDPAY (DT),07316500                 ,EXCHEQUER,Commission Paid,Internal Trading Cost Centres
Swale Borough Council,29UM,22/08/2018,1161454,351289.20,ZURICH MUNICIPAL,13460                    ,FINANCIAL SERVICES,Supply of Insurance Cover,Internal Trading Cost Centres
Swale Borough Council,29UM,29/08/2018,1161491,10119.00,ADELANTE SOFTWARE LTD,4450760                  ,FINANCIAL SERVICES,Computer Equipment & Materials,Internal Trading Cost Centres
Swale Borough Council,29UM,29/08/2018,1161670,172.00,DCB (KENT) LIMITED,03532339                 ,LEISURE & OPEN SPACES,Buildings Maintenance,Environmental and Regulatory Services
Swale Borough Council,29UM,29/08/2018,1161670,52.26,DCB (KENT) LIMITED,03532339                 ,LEISURE & OPEN SPACES,Non-Planned Building Maintenance,Environmental and Regulatory Services
Swale Borough Council,29UM,29/08/2018,1161670,145.20,DCB (KENT) LIMITED,03532339                 ,LEISURE & OPEN SPACES,Non-Planned Building Maintenance,Environmental and Regulatory Services
Swale Borough Council,29UM,29/08/2018,1161670,210.11,DCB (KENT) LIMITED,03532339                 ,PROPERTY SERVICES,Non-Planned Building Maintenance,Cultural and Related Services
Swale Borough Council,29UM,29/08/2018,1161670,62.62,DCB (KENT) LIMITED,03532339                 ,PROPERTY SERVICES,Non-Planned Building Maintenance,Trading Undertaking
Swale Borough Council,29UM,29/08/2018,1161670,354.13,DCB (KENT) LIMITED,03532339                 ,PROPERTY SERVICES,Non-Planned Building Maintenance,Trading Undertaking
Swale Borough Council,29UM,29/08/2018,1161670,1365.41,DCB (KENT) LIMITED,03532339                 ,HOUSING SERVICES,Buildings Maintenance,Housing
Swale Borough Council,29UM,29/08/2018,1161670,120.94,DCB (KENT) LIMITED,03532339                 ,HOUSING SERVICES,General Maintenance,Housing
Swale Borough Council,29UM,29/08/2018,1161670,21.50,DCB (KENT) LIMITED,03532339                 ,HOUSING SERVICES,General Maintenance,Housing
Swale Borough Council,29UM,29/08/2018,1161670,22.50,DCB (KENT) LIMITED,03532339                 ,HOUSING SERVICES,General Maintenance,Housing
Swale Borough Council,29UM,29/08/2018,1161670,1640.80,DCB (KENT) LIMITED,03532339                 ,PROPERTY SERVICES,Non-Planned Building Maintenance,Corporate & Democratic Core
Swale Borough Council,29UM,29/08/2018,1161670,43.00,DCB (KENT) LIMITED,03532339                 ,PROPERTY SERVICES,Non-Planned Building Maintenance,Corporate & Democratic Core
Swale Borough Council,29UM,29/08/2018,1161670,28.22,DCB (KENT) LIMITED,03532339                 ,PROPERTY SERVICES,Non-Planned Building Maintenance,Corporate & Democratic Core
Swale Borough Council,29UM,29/08/2018,1161670,604.80,DCB (KENT) LIMITED,03532339                 ,PROPERTY SERVICES,Buildings Maintenance,Corporate & Democratic Core
Swale Borough Council,29UM,29/08/2018,1161670,69.87,DCB (KENT) LIMITED,03532339                 ,PROPERTY SERVICES,Non-Planned Building Maintenance,Corporate & Democratic Core
Swale Borough Council,29UM,29/08/2018,1161670,65.65,DCB (KENT) LIMITED,03532339                 ,PROPERTY SERVICES,Non-Planned Building Maintenance,Corporate & Democratic Core
Swale Borough Council,29UM,29/08/2018,1161670,21.50,DCB (KENT) LIMITED,03532339                 ,PROPERTY SERVICES,Non-Planned Building Maintenance,Corporate & Democratic Core
Swale Borough Council,29UM,29/08/2018,1161670,94.24,DCB (KENT) LIMITED,03532339                 ,PROPERTY SERVICES,Non-Planned Building Maintenance,Corporate & Democratic Core
Swale Borough Council,29UM,29/08/2018,1161670,93.15,DCB (KENT) LIMITED,03532339                 ,MKS ENVIRONMENTAL SERVICES,Equipment,Not used in this Structure
Swale Borough Council,29UM,29/08/2018,1161670,109.93,DCB (KENT) LIMITED,03532339                 ,MKS ENVIRONMENTAL SERVICES,Equipment,Not used in this Structure
Swale Borough Council,29UM,29/08/2018,1161670,3843.74,DCB (KENT) LIMITED,03532339                 ,LEISURE & OPEN SPACES,Buildings Maintenance,Cultural and Related Services
Swale Borough Council,29UM,29/08/2018,1161670,91.20,DCB (KENT) LIMITED,03532339                 ,LEISURE & OPEN SPACES,Non-Planned Building Maintenance,Cultural and Related Services
Swale Borough Council,29UM,29/08/2018,1161670,44.00,DCB (KENT) LIMITED,03532339                 ,LEISURE & OPEN SPACES,Non-Planned Building Maintenance,Cultural and Related Services
Swale Borough Council,29UM,29/08/2018,1161670,144.31,DCB (KENT) LIMITED,03532339                 ,CONTRACT & PROCUREMENT,Non-Planned Building Maintenance,Environmental and Regulatory Services
Swale Borough Council,29UM,29/08/2018,1161670,55.62,DCB (KENT) LIMITED,03532339                 ,CONTRACT & PROCUREMENT,Non-Planned Building Maintenance,Environmental and Regulatory Services
Swale Borough Council,29UM,29/08/2018,1161670,21.50,DCB (KENT) LIMITED,03532339                 ,CONTRACT & PROCUREMENT,Non-Planned Building Maintenance,Environmental and Regulatory Services
Swale Borough Council,29UM,29/08/2018,1161670,51.81,DCB (KENT) LIMITED,03532339                 ,CONTRACT & PROCUREMENT,Non-Planned Building Maintenance,Environmental and Regulatory Services
Swale Borough Council,29UM,29/08/2018,1161670,96.98,DCB (KENT) LIMITED,03532339                 ,CONTRACT & PROCUREMENT,Non-Planned Building Maintenance,Environmental and Regulatory Services
Swale Borough Council,29UM,29/08/2018,1161670,22.50,DCB (KENT) LIMITED,03532339                 ,CONTRACT & PROCUREMENT,Non-Planned Building Maintenance,Environmental and Regulatory Services
Swale Borough Council,29UM,29/08/2018,1161670,21.50,DCB (KENT) LIMITED,03532339                 ,CONTRACT & PROCUREMENT,Non-Planned Building Maintenance,Environmental and Regulatory Services
Swale Borough Council,29UM,29/08/2018,1161670,306.59,DCB (KENT) LIMITED,03532339                 ,LEISURE & OPEN SPACES,Non-Planned Building Maintenance,Cultural and Related Services
Swale Borough Council,29UM,29/08/2018,1161670,649.60,DCB (KENT) LIMITED,03532339                 ,LEISURE & OPEN SPACES,Non-Planned Building Maintenance,Cultural and Related Services
Swale Borough Council,29UM,29/08/2018,1161655,1000.00,FREEWIRE COMMUNICATIONS,                         ,COMMUNITY SAFETY,Fees and Services,Environmental and Regulatory Services
Swale Borough Council,29UM,29/08/2018,1161755,445.00,GB SPORT & LEISURE UK LIMITED,7524601                  ,LEISURE & OPEN SPACES,Equipment Purchase,Cultural and Related Services
Swale Borough Council,29UM,29/08/2018,1161763,600.00,LEMAR LIMITED,04350292                 ,SERVICE DELIVERY,Private Contractors - CIS,Highway and Transport Services
Swale Borough Council,29UM,29/08/2018,1161763,375.00,LEMAR LIMITED,04350292                 ,SERVICE DELIVERY,Private Contractors - CIS,Highway and Transport Services
Swale Borough Council,29UM,29/08/2018,1161765,750.00,LEMAR LIMITED,04350292                 ,CAR PARKS,Maintenance - Grounds,Highway and Transport Services
Swale Borough Council,29UM,29/08/2018,1161765,810.00,LEMAR LIMITED,04350292                 ,CAR PARKS,Maintenance - Grounds,Highway and Transport Services
Swale Borough Council,29UM,29/08/2018,1161460,3648.72,MAIDSTONE BOROUGH COUNCIL,                         ,HUMAN RESOURCES,Fees and Services,Corporate & Democratic Core
Swale Borough Council,29UM,29/08/2018,1161772,12635.10,MATRIX SCM LTD,2227962                  ,HUMAN RESOURCES,Agency/Contract Staff,Internal Trading Cost Centres
Swale Borough Council,29UM,29/08/2018,1161801,676.55,MAYLOW CONSTRUCTION LTD,                         ,LEISURE & OPEN SPACES,Construction,Not used in this Structure
Swale Borough Council,29UM,29/08/2018,1161801,300.00,MAYLOW CONSTRUCTION LTD,                         ,LEISURE & OPEN SPACES,Maintenance - Grounds,Cultural and Related Services
Swale Borough Council,29UM,29/08/2018,1161802,5026.00,MAYLOW CONSTRUCTION LTD,                         ,LEISURE & OPEN SPACES,Maintenance - Grounds,Cultural and Related Services
Swale Borough Council,29UM,29/08/2018,1161748,28000.00,MEDWAY COUNCIL,                         ,ECONOMIC DEVELOPMENT,Economic Development/Regeneration Projects,Planning and Development Services
Swale Borough Council,29UM,29/08/2018,1161665,1013.81,ROYAL MAIL GROUP LTD,4138203                  ,REVENUE SERVICES,Postage,Central Services to the Public
Swale Borough Council,29UM,29/08/2018,1161636,424.70,RSP RAIL TRAVEL ACCOUNT - (DT),                         ,FINANCIAL SERVICES,Travel Warrants (Staff Travel),Internal Trading Cost Centres
Swale Borough Council,29UM,29/08/2018,1161643,4562.60,SHARP BUSINESS SYSTEMS UK,2136901                  ,MKS ICT,Equipment Rental,Holding Codes
Swale Borough Council,29UM,29/08/2018,1161680,2300.00,SHEPPEY PROMENADE,                         ,TOURISM & SPORTS DEVELOPMENT,Grants & Subscriptions,Cultural and Related Services
Swale Borough Council,29UM,29/08/2018,1161369,399.00,SOUTHERN COMMUNICATIONS LTD,1328040                  ,MKS ICT,Telephone,Corporate & Democratic Core
Swale Borough Council,29UM,29/08/2018,1161779,1060.00,THREE TOWNS OFFICE EQUIPMENT LTD,                         ,LEISURE & OPEN SPACES,Furniture,Internal Trading Cost Centres
